bitfinex/quotes_BTCUSD_20220103
["timestamp","ask_amount","ask_price","bid_price","bid_amount"]
[1641221555474,0.16956216,46950.0,46946.0,0.05]
[1641221555668,0.16956216,46950.0,46945.0,0.0851]
[1641221555866,0.27608604,46950.0,46945.0,0.0851]
[1641221556066,0.33160549,46950.0,46945.0,0.0851]
[1641221556265,0.44364265,46947.0,46945.0,0.0851]
[1641221556465,0.55017665,46947.0,46945.0,0.0851]
[1641221556669,0.47661857,46946.0,46945.0,0.0851]
[1641221556966,0.346766,46946.0,46945.0,0.0851]
[1641221557630,0.053273,46942.0,46937.0,0.00823343]
[1641221557833,0.67919237,46941.0,46937.0,0.00823343]
[1641221558028,0.66126271,46940.0,46937.0,3.43e-06]
[1641221558225,0.346766,46939.0,46931.0,0.002]
[1641221558425,2.14544572,46928.0,46927.0,0.00022]
[1641221558628,1.936766,46927.0,46926.0,0.00011]
[1641221559230,0.0532759,46937.0,46926.0,0.00011]
[1641221559425,1.28965384,46950.0,46927.0,0.346766]
[1641221559426,0.00124128,46942.0,46927.0,0.346766]
[1641221559628,0.00124128,46942.0,46928.0,0.33429926]
[1641221560026,0.24279669,46942.0,46928.0,0.33429926]
[1641221560227,0.08004704,46941.0,46934.0,0.015981]
[1641221560427,0.346766,46940.0,46934.0,0.015981]
[1641221562267,0.05327,46939.0,46934.0,0.015981]
[1641221563271,0.00124128,46942.0,46934.0,0.015981]
[1641221563474,0.00123205,46947.0,46934.0,0.122509]
[1641221563671,0.346766,46946.0,46934.0,0.122509]
[1641221563868,0.00123205,46947.0,46934.0,0.122509]
[1641221564270,0.21537845,46947.0,46934.0,0.122509]
[1641221564478,0.0910825,46944.0,46934.0,0.122509]
[1641221564675,0.0910825,46944.0,46928.0,0.20383443]
[1641221564676,1.04121011,46920.0,46919.0,0.10033]
[1641221564877,0.22346308,46910.0,46909.0,0.00044]
[1641221565125,1.51346308,46910.0,46909.0,0.00011]
[1641221565321,1.86022908,46910.0,46909.0,0.00011]
[1641221565527,1.95376529,46910.0,46909.0,0.00011]
[1641221565721,1.88484743,46910.0,46909.0,0.00011]
[1641221566022,1.80499486,46910.0,46909.0,0.00011]
[1641221566320,1.44520578,46910.0,46909.0,0.00011]
[1641221566521,1.4464835,46910.0,46909.0,0.00011]
[1641221566923,2.0264835,46910.0,46909.0,0.00011]
[1641221567125,0.346766,46909.0,46908.0,0.00011]
[1641221567323,0.053316,46908.0,46906.0,0.00033]
[1641221567526,0.72026526,46909.0,46901.0,0.00233]
[1641221567527,0.321157,46904.0,46901.0,0.00233]
[1641221567725,0.346766,46902.0,46900.0,1e-05]
[1641221567922,1.99401895,46901.0,46900.0,1e-05]
[1641221568124,0.75207606,46901.0,46900.0,1e-05]
[1641221568325,0.0168,46901.0,46900.0,1e-05]
[1641221568626,0.053307,46904.0,46900.0,1e-05]
[1641221568874,0.346766,46903.0,46900.0,0.00016026]
[1641221569472,0.053307,46904.0,46900.0,0.00016026]
[1641221569875,0.346766,46903.0,46900.0,0.00016026]
[1641221570478,0.52993557,46901.0,46900.0,1.026e-05]
[1641221570679,1.101001,46901.0,46900.0,1.026e-05]
[1641221570876,0.346766,46899.0,46894.0,0.00022]
[1641221571078,0.47130246,46898.0,46894.0,0.00022]
[1641221571279,0.47130246,46898.0,46890.0,0.00011]
[1641221571280,0.0012798,46894.0,46890.0,0.00011]
[1641221571481,0.06999499,46891.0,46871.0,0.72501593]
[1641221571678,0.10667398,46889.0,46875.0,0.05]
[1641221571880,0.385966,46888.0,46871.0,0.002]
[1641221572076,0.23174306,46885.0,46873.0,0.1778385]
[1641221572280,0.05334027,46882.0,46873.0,0.1778385]
[1641221572538,0.0012348,46877.0,46871.0,0.002]
[1641221572727,0.3480008,46877.0,46871.0,0.002]
[1641221572928,0.3980008,46877.0,46871.0,0.002]
[1641221573131,0.00127902,46893.0,46875.0,0.00126502]
[1641221573330,0.05332418,46890.0,46880.0,0.1]
[1641221573530,0.00127902,46893.0,46875.0,0.00126502]
[1641221573730,0.00824898,46893.0,46875.0,0.00126502]
[1641221574031,0.24118285,46886.0,46881.0,0.70463783]
[1641221574430,0.29451125,46886.0,46881.0,0.70463783]
[1641221574730,0.10886472,46886.0,46881.0,0.70463783]
[1641221575129,0.05,46885.0,46881.0,0.70463783]
[1641221575330,0.05886472,46886.0,46879.0,0.9572475]
[1641221575532,0.05886472,46886.0,46880.0,0.346766]
[1641221575732,0.05333334,46884.0,46877.0,0.25109273]
[1641221576693,0.10666734,46884.0,46877.0,0.25109273]
[1641221576894,0.0795091,46882.0,46877.0,0.25109273]
[1641221577094,0.05,46882.0,46877.0,0.25109273]
[1641221577294,0.05333571,46880.0,46877.0,0.25109273]
[1641221578292,0.04833571,46880.0,46877.0,0.25109273]
[1641221578893,0.05,46882.0,46877.0,0.25109273]
[1641221579093,0.106662,46890.0,46877.0,0.25109273]
[1641221579298,9.0,46880.0,46879.0,0.1]
[1641221579495,9.0,46880.0,46879.0,0.1392]
[1641221579794,9.0,46880.0,46879.0,0.0392]
[1641221580329,9.0,46880.0,46878.0,0.02140642]
[1641221580829,9.0,46880.0,46878.0,7.842e-05]
[1641221581032,8.99944834,46880.0,46878.0,7.842e-05]
[1641221581530,1.926766,46879.0,46878.0,7.842e-05]
[1641221581731,1.58,46879.0,46878.0,7.842e-05]
[1641221582330,1.58130624,46879.0,46878.0,7.842e-05]
[1641221582529,1.58673922,46879.0,46878.0,7.842e-05]
[1641221582735,1.93350522,46879.0,46878.0,7.842e-05]
[1641221582932,1.92930814,46879.0,46878.0,7.842e-05]
[1641221583132,1.92930814,46879.0,46878.0,8.42e-06]
[1641221583329,2.14341264,46879.0,46878.0,8.42e-06]
[1641221583531,1.98264658,46879.0,46878.0,8.42e-06]
[1641221583775,2.02888402,46879.0,46878.0,8.42e-06]
[1641221584178,1.97888402,46879.0,46878.0,8.42e-06]
[1641221584378,8.94944834,46880.0,46878.0,8.42e-06]
[1641221584576,8.99944834,46880.0,46878.0,8.42e-06]
[1641221584978,8.94944834,46880.0,46878.0,8.42e-06]
[1641221585180,8.94452834,46880.0,46879.0,0.28693139]
[1641221585680,8.94452834,46880.0,46879.0,0.42613139]
[1641221585875,8.94452834,46880.0,46879.0,0.1392]
[1641221586078,8.94452834,46880.0,46879.0,0.23618702]
[1641221586279,8.94452834,46880.0,46879.0,0.25633445]
[1641221586579,8.51998224,46880.0,46879.0,1.06633445]
[1641221586881,8.25397224,46880.0,46879.0,1.38133445]
[1641221587079,7.97017224,46880.0,46879.0,1.38133445]
[1641221587277,7.97017224,46880.0,46879.0,1.53464745]
[1641221587537,7.96663224,46880.0,46879.0,2.13269699]
[1641221587834,5.08654961,46880.0,46879.0,3.14269699]
[1641221588038,4.38512103,46880.0,46879.0,3.32913986]
[1641221588231,3.14206103,46880.0,46879.0,3.52913986]
[1641221588434,2.01973518,46880.0,46879.0,3.26701455]
[1641221588632,1.56645048,46880.0,46879.0,3.26701455]
[1641221588832,1.12827948,46880.0,46879.0,2.59701455]
[1641221589033,0.68891848,46880.0,46879.0,2.23913986]
[1641221589335,0.66839848,46880.0,46879.0,3.13274322]
[1641221589533,0.65659848,46880.0,46879.0,3.13274322]
[1641221589732,0.64361848,46880.0,46879.0,4.15774322]
[1641221589932,0.62945848,46880.0,46879.0,4.15774322]
[1641221590135,0.61529848,46880.0,46879.0,4.15788816]
[1641221590335,0.60113848,46880.0,46879.0,3.81112216]
[1641221590543,0.59051848,46880.0,46879.0,4.30788816]
[1641221590738,0.36349248,46880.0,46879.0,4.30788816]
[1641221591037,0.00121529,46897.0,46887.0,0.06395499]
[1641221591307,0.00120894,46908.0,46892.0,0.053298]
[1641221591509,0.18082883,46906.0,46896.0,0.18551945]
[1641221591708,0.18082883,46906.0,46893.0,0.40081666]
[1641221591911,0.23082883,46906.0,46895.0,0.964912]
[1641221592108,0.23082883,46906.0,46896.0,0.346766]
[1641221592109,0.31472962,46906.0,46896.0,0.346766]
[1641221592308,0.05450965,46908.0,46898.0,0.01066]
[1641221592510,0.05450965,46908.0,46901.0,0.72372356]
[1641221592707,0.00120894,46908.0,46901.0,0.72372356]
[1641221593411,0.05330466,46904.0,46901.0,0.72372356]
[1641221593610,0.05330466,46904.0,46899.0,0.54437829]
[1641221593808,0.05330466,46904.0,46900.0,0.346766]
[1641221594211,0.13181795,46905.0,46894.0,0.54437829]
[1641221594212,0.00120818,46895.0,46894.0,0.54437829]
[1641221594409,0.00126453,46896.0,46894.0,0.89114429]
[1641221594611,0.2156781,46896.0,46895.0,0.346766]
[1641221595232,0.2106781,46896.0,46895.0,0.346766]
[1641221595433,0.2106781,46896.0,46895.0,0.97856786]
[1641221596034,0.15662604,46901.0,46895.0,0.346766]
[1641221596235,0.05330955,46899.0,46890.0,0.32761382]
[1641221596535,0.05330955,46899.0,46891.0,0.346766]
[1641221596735,0.05,46901.0,46891.0,0.346766]
[1641221596934,0.22430776,46899.0,46891.0,0.346766]
[1641221597137,0.00126127,46898.0,46891.0,0.346766]
[1641221597336,0.31814115,46898.0,46888.0,0.964912]
[1641221597635,0.00126127,46898.0,46889.0,0.346766]
[1641221597837,0.00126127,46898.0,46892.0,0.51225597]
[1641221598138,0.07136933,46897.0,46893.0,0.346766]
[1641221598786,0.053318,46895.0,46893.0,0.346766]
[1641221598986,0.053318,46895.0,46894.0,0.298539]
[1641221599388,0.053318,46895.0,46890.0,0.51225597]
[1641221599585,0.053318,46895.0,46891.0,0.346766]
[1641221600185,0.053318,46895.0,46892.0,0.50926368]
[1641221600700,0.00122086,46893.0,46892.0,0.28779368]
[1641221600890,1.79450093,46893.0,46892.0,0.16779368]
[1641221601089,1.79450093,46893.0,46892.0,0.16785499]
[1641221601090,2.29126693,46893.0,46892.0,0.16785499]
[1641221601486,2.29126693,46893.0,46892.0,6.131e-05]
[1641221601886,2.28626693,46893.0,46892.0,6.131e-05]
[1641221602188,2.28752433,46893.0,46892.0,6.131e-05]
[1641221603643,2.28732533,46893.0,46892.0,6.131e-05]
[1641221605043,2.28732533,46893.0,46878.0,0.60601331]
[1641221605243,0.1629427,46871.0,46869.0,0.56335897]
[1641221605450,0.1629427,46871.0,46853.0,0.00011]
[1641221605451,0.51542232,46861.0,46860.0,0.00120232]
[1641221605753,0.51542232,46861.0,46855.0,0.1]
[1641221605754,0.05334902,46860.0,46855.0,0.1]
[1641221605947,0.05334902,46860.0,46853.0,0.76024378]
[1641221605948,1.61033,46854.0,46853.0,0.76024378]
[1641221606148,1.996296,46854.0,46852.0,0.00011121]
[1641221606403,1.966766,46852.0,46851.0,0.00977417]
[1641221606603,0.385966,46852.0,46851.0,0.00058459]
[1641221606804,1.6542,46852.0,46851.0,0.00014459]
[1641221607001,1.6542,46852.0,46851.0,3.459e-05]
[1641221607002,0.380966,46852.0,46851.0,3.459e-05]
[1641221607202,1.41,46850.0,46849.0,0.00011]
[1641221607402,1.41,46850.0,46848.0,0.00011]
[1641221607403,1.2,46849.0,46848.0,0.00011]
[1641221607604,1.61,46847.0,46844.0,0.00022]
[1641221607805,1.956766,46846.0,46845.0,0.00022]
[1641221608004,0.40551462,46846.0,46845.0,0.00022]
[1641221608505,1.02676825,46846.0,46845.0,0.00011]
[1641221608702,1.61,46845.0,46844.0,0.00011]
[1641221608902,0.67497931,46845.0,46844.0,0.00011]
[1641221609105,1.58,46843.0,46842.0,0.00033]
[1641221609302,0.346766,46843.0,46842.0,0.00033]
[1641221610325,0.446766,46843.0,46842.0,0.00033]
[1641221610725,0.75221313,46843.0,46842.0,0.00033]
[1641221610931,0.10675993,46844.0,46842.0,0.00033]
[1641221611134,0.053367,46847.0,46842.0,0.00033]
[1641221611326,0.05336413,46846.0,46842.0,0.00033]
[1641221611531,0.10672254,46854.0,46845.0,0.26358085]
[1641221611730,0.00277232,46855.0,46845.0,0.26358085]
[1641221611930,0.09466577,46851.0,46845.0,0.26358085]
[1641221612131,0.00277232,46855.0,46845.0,0.26358085]
[1641221612528,0.00277232,46855.0,46846.0,0.3291152]
[1641221612729,0.00277232,46855.0,46847.0,0.0404895]
[1641221613133,0.00277232,46855.0,46854.0,0.32716399]
[1641221613328,0.00277232,46855.0,46854.0,0.62634999]
[1641221613530,0.00277232,46855.0,46854.0,0.67634999]
[1641221613984,0.00277232,46855.0,46854.0,0.349186]
[1641221614180,0.00277232,46855.0,46854.0,0.05]
[1641221614381,0.00277232,46855.0,46844.0,0.3291152]
[1641221614580,0.00277232,46855.0,46853.0,0.18524425]
[1641221614781,0.00277232,46855.0,46844.0,0.3791152]
[1641221614979,0.08573195,46854.0,46844.0,0.3791152]
[1641221615179,0.08573195,46854.0,46846.0,0.32829936]
[1641221615380,0.08573195,46854.0,46846.0,0.37829936]
[1641221615583,0.00277232,46855.0,46847.0,0.32024199]
[1641221615780,0.00277232,46855.0,46848.0,0.346766]
[1641221616184,0.00277232,46855.0,46849.0,0.05]
[1641221616384,0.00277232,46855.0,46850.0,0.62623674]
[1641221616581,0.00277232,46855.0,46854.0,0.32209353]
[1641221616784,0.00277232,46855.0,46854.0,0.66881253]
[1641221616983,0.00277232,46855.0,46854.0,0.05]
[1641221617382,0.34953832,46855.0,46843.0,9.588e-05]
[1641221617638,0.00277232,46855.0,46843.0,9.588e-05]
[1641221618036,0.05613232,46855.0,46848.0,0.28870465]
[1641221618439,0.05613232,46855.0,46835.0,1.03936223]
[1641221618440,0.33593233,46847.0,46835.0,1.03936223]
[1641221618649,0.33593233,46847.0,46833.0,0.00033]
[1641221618650,0.50333404,46817.0,46814.0,0.2431]
[1641221618842,0.06423372,46819.0,46800.0,0.04849218]
[1641221618843,0.68374119,46808.0,46800.0,0.04849218]
[1641221619043,0.1,46802.0,46797.0,0.0105]
[1641221619239,0.7100812,46801.0,46795.0,1.08536807]
[1641221619442,0.57883984,46801.0,46795.0,1.08536807]
[1641221619740,0.26915,46802.0,46796.0,0.40033412]
[1641221619741,0.06915,46802.0,46796.0,0.40033412]
[1641221620038,0.07043948,46802.0,46797.0,0.347006]
[1641221620240,0.00126498,46805.0,46797.0,0.347006]
[1641221620438,0.50107006,46808.0,46797.0,0.347006]
[1641221620640,0.50107006,46808.0,46806.0,0.09604907]
[1641221621040,0.50107006,46808.0,46806.0,0.14604907]
[1641221621298,0.50107006,46808.0,46807.0,0.347006]
[1641221621501,0.50107006,46808.0,46807.0,0.36715343]
[1641221621697,0.50107006,46808.0,46807.0,0.347006]
[1641221621993,0.50107006,46808.0,46807.0,1.43938129]
[1641221622194,0.00705297,46816.0,46811.0,0.346948]
[1641221622394,0.00705297,46816.0,46808.0,1.55]
[1641221622395,0.00705297,46816.0,46815.0,1.424552]
[1641221622596,0.43290908,46819.0,46816.0,0.346904]
[1641221622794,0.43290908,46819.0,46817.0,0.31064676]
[1641221622995,0.24653711,46819.0,46817.0,0.45717914]
[1641221623196,0.24653711,46819.0,46818.0,0.346978]
[1641221623896,0.24774274,46819.0,46818.0,0.72490301]
[1641221624298,0.87653711,46819.0,46818.0,0.72490301]
[1641221624497,0.93116072,46819.0,46815.0,0.72490301]
[1641221624695,0.35796504,46819.0,46815.0,1.10373996]
[1641221624898,0.35796504,46819.0,46815.0,0.72490301]
[1641221625142,0.35796504,46819.0,46815.0,0.05]
[1641221625143,0.41339239,46819.0,46815.0,0.05]
[1641221625341,0.51339239,46819.0,46812.0,0.72490301]
[1641221625544,0.46339239,46819.0,46812.0,0.72490301]
[1641221625842,0.05340109,46815.0,46811.0,0.72490301]
[1641221626048,0.24653711,46819.0,46814.0,0.346978]
[1641221626241,0.24653711,46819.0,46812.0,0.50284599]
[1641221626242,0.24653711,46819.0,46818.0,0.299474]
[1641221626442,0.24170039,46819.0,46814.0,0.44298151]
[1641221626644,0.24170039,46819.0,46815.0,0.15]
[1641221626848,0.10730086,46819.0,46818.0,0.446946]
[1641221627043,0.10730086,46819.0,46818.0,1.661146]
[1641221627541,0.10730086,46819.0,46818.0,1.58129343]
[1641221627744,0.00120311,46834.0,46833.0,0.19253033]
[1641221627946,0.7798812,46838.0,46836.0,0.10001527]
[1641221628145,0.00128164,46842.0,46837.0,0.2910346]
[1641221628446,0.00188248,46838.0,46837.0,1.4160346]
[1641221628644,0.00188248,46838.0,46837.0,1.88297003]
[1641221628899,0.00188248,46838.0,46837.0,2.02921455]
[1641221629097,0.00188248,46838.0,46837.0,2.39244081]
[1641221629698,0.00119985,46838.0,46837.0,2.39244081]
[1641221630199,0.00119985,46838.0,46837.0,0.65797003]
[1641221630200,1.27,46838.0,46837.0,0.65797003]
[1641221630406,0.01,46844.0,46837.0,0.31118203]
[1641221630599,0.01,46844.0,46837.0,0.2910346]
[1641221630801,0.01,46844.0,46838.0,0.346776]
[1641221631201,0.053379,46842.0,46837.0,0.2910346]
[1641221631401,0.053379,46842.0,46833.0,0.07752496]
[1641221631804,0.10675474,46842.0,46833.0,0.07752496]
[1641221632202,0.01,46844.0,46834.0,0.19785859]
[1641221632403,0.01,46844.0,46837.0,0.26347433]
[1641221633041,0.002,46849.0,46841.0,0.08666591]
[1641221633238,0.002,46849.0,46841.0,0.13666591]
[1641221633439,0.00121549,46842.0,46837.0,0.00012914]
[1641221633839,0.00636637,46842.0,46837.0,0.00012914]
[1641221634439,0.05338,46841.0,46837.0,0.00012914]
[1641221634649,0.00126516,46836.0,46822.0,0.96666535]
[1641221634840,0.0392,46835.0,46822.0,0.96666535]
[1641221635439,0.053393,46833.0,46823.0,0.96666535]
[1641221635642,0.053393,46833.0,46824.0,0.41042437]
[1641221635841,0.053403,46829.0,46824.0,0.41042437]
[1641221636041,0.05340256,46830.0,46828.0,0.09157956]
[1641221636289,0.05340256,46830.0,46824.0,0.41042437]
[1641221636290,0.12985257,46829.0,46824.0,0.41042437]
[1641221636493,0.05340256,46830.0,46825.0,0.346885]
[1641221636692,0.05340256,46830.0,46823.0,0.26604993]
[1641221636693,0.00120835,46829.0,46823.0,0.26604993]
[1641221636891,0.10801435,46825.0,46823.0,0.26604993]
[1641221637091,0.10801435,46825.0,46823.0,0.25104993]
[1641221637092,0.05461635,46825.0,46823.0,0.25104993]
[1641221637298,0.31358061,46831.0,46823.0,0.33687016]
[1641221637299,0.21482171,46831.0,46823.0,0.33687016]
[1641221637494,0.12004708,46837.0,46823.0,0.33687016]
[1641221637697,0.12004708,46837.0,46830.0,0.40140187]
[1641221637698,0.67302872,46837.0,46830.0,0.40140187]
[1641221638096,0.346946,46836.0,46830.0,0.05]
[1641221638397,0.64875449,46836.0,46827.0,0.22784377]
[1641221638596,0.05338384,46835.0,46827.0,0.05]
[1641221638994,0.00126702,46831.0,46823.0,0.38687016]
[1641221639195,0.00126702,46831.0,46823.0,0.82669661]
[1641221639797,0.00126702,46831.0,46823.0,0.69087638]
[1641221639798,0.05338979,46830.0,46823.0,0.69087638]
[1641221640050,0.053396,46827.0,46816.0,0.96666535]
[1641221640244,0.30512905,46826.0,46815.0,0.96666535]
[1641221640448,0.00122595,46824.0,46815.0,0.96666535]
[1641221640651,0.001259,46818.0,46815.0,0.96666535]
[1641221641047,0.053409,46817.0,46810.0,1.51472018]
[1641221641650,0.00718108,46821.0,46810.0,1.51472018]
[1641221641846,0.0392,46830.0,46810.0,0.54805483]
[1641221641847,0.00127773,46824.0,46810.0,0.54805483]
[1641221642046,0.10808287,46824.0,46818.0,0.09696369]
[1641221642450,0.053403,46821.0,46812.0,0.5763249]
[1641221642654,0.00124561,46820.0,46812.0,0.2]
[1641221642847,0.00124561,46820.0,46812.0,0.25]
[1641221643049,0.05340338,46818.0,46812.0,0.25]
[1641221643448,0.0012949,46814.0,46812.0,0.2]
[1641221643794,0.0012949,46814.0,46813.0,0.00012473]
[1641221644195,0.05341537,46815.0,46813.0,0.00012473]
[1641221644393,0.00826299,46818.0,46813.0,0.00012473]
[1641221644594,0.00826299,46818.0,46814.0,0.07220545]
[1641221644795,0.00826299,46818.0,46815.0,0.3264093]
[1641221644997,0.00826299,46818.0,46816.0,0.346946]
[1641221645192,0.00826299,46818.0,46816.0,0.22088136]
[1641221645394,0.00826299,46818.0,46813.0,0.00012473]
[1641221645593,0.053409,46817.0,46813.0,0.00012473]
[1641221646395,0.00826299,46818.0,46814.0,0.32022207]
[1641221646594,0.00826299,46818.0,46815.0,0.346946]
[1641221646995,0.00826299,46818.0,46815.0,0.05]
[1641221647393,0.00326299,46818.0,46815.0,0.05]
[1641221647639,0.00326299,46818.0,46816.0,0.346946]
[1641221647835,0.20923207,46825.0,46824.0,0.07227625]
[1641221648043,1.7246812,46835.0,46824.0,0.12227625]
[1641221648044,0.00122197,46831.0,46824.0,0.12227625]
[1641221648437,1.1137003,46834.0,46824.0,0.12227625]
[1641221648639,0.3288191,46829.0,46824.0,0.05]
[1641221648838,0.346946,46828.0,46821.0,0.22880161]
[1641221649039,0.05466501,46825.0,46821.0,0.27880161]
[1641221649340,0.3338191,46833.0,46821.0,0.27880161]
[1641221649539,0.106778,46838.0,46821.0,0.27880161]
[1641221649742,1.1209,46849.0,46834.0,0.08770047]
[1641221649939,0.002,46849.0,46836.0,0.19126748]
[1641221650243,0.002,46849.0,46836.0,1.59412522]
[1641221650436,0.002,46849.0,46836.0,1.29015869]
[1641221650635,0.002,46849.0,46836.0,2.76515869]
[1641221650838,0.002,46849.0,46837.0,0.6805971]
[1641221651036,0.002,46849.0,46842.0,0.00120732]
[1641221651300,0.002,46849.0,46846.0,0.346706]
[1641221651502,0.002,46849.0,46848.0,0.346688]
[1641221651702,0.00020088,46863.0,46856.0,0.07073378]
[1641221651902,0.00020088,46863.0,46857.0,0.33954892]
[1641221652108,0.053353,46866.0,46857.0,0.33954892]
[1641221652304,0.053353,46866.0,46847.0,0.05128069]
[1641221652305,0.00121454,46863.0,46847.0,0.00128069]
[1641221652504,0.00121454,46863.0,46843.0,0.50888886]
[1641221652505,0.053365,46856.0,46843.0,0.50888886]
[1641221652707,0.053365,46856.0,46844.0,0.346705]
[1641221652906,0.00121454,46863.0,46844.0,0.6805241]
[1641221653101,0.00121454,46863.0,46851.0,0.0862491]
[1641221653301,0.00121454,46863.0,46853.0,0.42018278]
[1641221653500,0.30100397,46867.0,46858.0,0.2614433]
[1641221653702,0.106716,46867.0,46858.0,0.2614433]
[1641221654000,0.00122403,46863.0,46859.0,8.537e-05]
[1641221655137,0.00118503,46862.0,46859.0,0.0779617]
[1641221655339,0.00118503,46862.0,46860.0,0.34658]
[1641221655541,0.00118503,46862.0,46860.0,0.39658]
[1641221656738,0.00118503,46862.0,46861.0,0.07872025]
[1641221656940,0.00118503,46862.0,46861.0,0.42529325]
[1641221657442,0.04172523,46868.0,46863.0,0.22643981]
[1641221657641,0.04172523,46868.0,46861.0,0.07872025]
[1641221658440,0.0413464,46868.0,46861.0,0.42349411]
[1641221658641,0.0413464,46868.0,46866.0,0.23267328]
[1641221658889,0.0413464,46868.0,46867.0,0.346521]
[1641221659091,0.04252818,46868.0,46867.0,0.346521]
[1641221659491,0.00118178,46868.0,46867.0,0.346521]
[1641221659689,0.00118178,46868.0,46866.0,0.05]
[1641221660089,0.346946,46867.0,46859.0,8.537e-05]
[1641221660288,0.00118178,46868.0,46859.0,0.05008537]
[1641221660497,0.00118178,46868.0,46859.0,8.537e-05]
[1641221660695,0.00122346,46861.0,46859.0,8.537e-05]
[1641221660892,1.663362,46860.0,46859.0,8.537e-05]
[1641221661094,2.049508,46860.0,46859.0,8.537e-05]
[1641221661294,2.15072936,46860.0,46859.0,8.537e-05]
[1641221661490,2.15863966,46860.0,46859.0,8.537e-05]
[1641221661694,2.63849223,46860.0,46859.0,8.537e-05]
[1641221661892,2.73849223,46860.0,46859.0,8.537e-05]
[1641221662093,2.33849223,46860.0,46859.0,8.537e-05]
[1641221662291,2.33849223,46860.0,46859.0,5.37e-06]
[1641221662562,8e-05,46859.0,46834.0,1.08749851]
[1641221662749,8e-05,46859.0,46833.0,0.96666535]
[1641221662750,0.00125351,46845.0,46833.0,0.96666535]
[1641221663051,0.06951,46843.0,46826.0,0.96666535]
[1641221663251,0.0392,46842.0,46826.0,0.96666535]
[1641221663447,0.00509672,46841.0,46827.0,0.19914824]
[1641221663649,0.06951,46843.0,46827.0,0.19914824]
[1641221663650,0.0392,46840.0,46827.0,0.19914824]
[1641221663848,0.05338422,46839.0,46834.0,0.32934315]
[1641221664048,0.0392,46841.0,46834.0,0.32934315]
[1641221664049,0.346946,46838.0,46834.0,0.32934315]
[1641221664249,0.346946,46838.0,46827.0,0.19914824]
[1641221664448,0.0960939,46841.0,46827.0,0.19914824]
[1641221664651,0.0960939,46841.0,46827.0,0.25253324]
[1641221664848,0.0460939,46841.0,46830.0,0.3830595]
[1641221665049,0.05338554,46838.0,46830.0,0.3830595]
[1641221665249,0.05338554,46838.0,46834.0,0.29037748]
[1641221665449,0.05338554,46838.0,46834.0,0.34037748]
[1641221665758,0.37113694,46837.0,46828.0,9.47e-05]
[1641221665957,0.053395,46833.0,46828.0,9.47e-05]
[1641221666150,0.346946,46832.0,46828.0,9.47e-05]
[1641221666393,0.053395,46833.0,46828.0,9.47e-05]
[1641221666594,0.053395,46833.0,46829.0,0.43254917]
[1641221666993,0.053395,46833.0,46828.0,0.09141755]
[1641221667193,0.10678626,46833.0,46828.0,0.0500947]
[1641221667393,0.053397,46831.0,46828.0,0.0500947]
[1641221667594,0.053397,46831.0,46828.0,9.47e-05]
[1641221668194,0.10679381,46831.0,46828.0,9.47e-05]
[1641221668796,0.053397,46831.0,46828.0,9.47e-05]
[1641221669195,0.346946,46830.0,46828.0,9.47e-05]
[1641221669798,0.05339,46834.0,46833.0,0.07741324]
[1641221670042,0.145983,46836.0,46833.0,0.07741324]
[1641221670043,0.56254433,46839.0,46833.0,0.07741324]
[1641221670239,0.346946,46838.0,46833.0,0.12741324]
[1641221670836,0.00822464,46839.0,46834.0,0.44266499]
[1641221671044,0.00822464,46839.0,46834.0,0.49604399]
[1641221671440,0.00822464,46839.0,46835.0,0.10126117]
[1641221671639,0.00822464,46839.0,46838.0,0.01425456]
[1641221671837,0.00822464,46839.0,46838.0,1.74461565]
[1641221672038,0.00822464,46839.0,46838.0,0.72297165]
[1641221672238,0.55738851,46858.0,46838.0,0.91083437]
[1641221672440,0.55738851,46858.0,46849.0,0.22441826]
[1641221672640,0.346946,46857.0,46849.0,0.05]
[1641221672840,0.55738851,46857.0,46849.0,0.05]
[1641221673038,0.55738851,46857.0,46844.0,0.00122866]
[1641221673243,0.55738851,46857.0,46847.0,0.40698396]
[1641221673440,0.55738851,46857.0,46848.0,0.26301814]
[1641221673645,0.55738851,46857.0,46849.0,0.24749168]
[1641221673886,0.05336502,46858.0,46849.0,0.24749168]
[1641221674389,0.053363,46857.0,46849.0,0.24749168]
[1641221675187,0.053363,46857.0,46844.0,0.72443438]
[1641221675386,0.346946,46856.0,46850.0,7.771e-05]
[1641221675586,0.043371,46853.0,46850.0,7.771e-05]
[1641221675786,0.346946,46852.0,46850.0,7.771e-05]
[1641221676486,0.043371,46853.0,46850.0,7.771e-05]
[1641221676986,0.053364,46855.0,46850.0,7.771e-05]
[1641221678041,0.7798812,46862.0,46856.0,0.08451363]
[1641221678042,0.61074851,46859.0,46856.0,0.08451363]
[1641221678240,0.346946,46858.0,46856.0,0.08451363]
[1641221678437,0.346946,46858.0,46857.0,0.05]
[1641221678641,0.55738851,46859.0,46857.0,0.05]
[1641221679038,0.55738851,46859.0,46857.0,0.40494494]
[1641221679239,0.55738851,46862.0,46857.0,0.40494494]
[1641221679439,0.54300606,46862.0,46857.0,0.40494494]
[1641221680038,0.7798812,46866.0,46859.0,0.18129106]
[1641221680339,0.053355,46862.0,46857.0,0.40494494]
[1641221680741,0.01694926,46862.0,46857.0,0.40494494]
[1641221681140,0.8798812,46868.0,46858.0,0.346598]
[1641221681404,0.8798812,46868.0,46857.0,0.40494494]
[1641221681405,0.002,46869.0,46857.0,0.40494494]
[1641221681601,0.05335,46866.0,46858.0,0.05456477]
[1641221681802,0.002,46869.0,46865.0,0.28135051]
[1641221681999,0.002,46869.0,46866.0,0.05]
[1641221682599,0.055347,46869.0,46866.0,0.05]
[1641221682998,0.346946,46868.0,46860.0,0.05]
[1641221683200,0.055347,46869.0,46859.0,0.053348]
[1641221683398,0.055347,46869.0,46861.0,0.18232746]
[1641221683597,0.055347,46869.0,46861.0,0.23232746]
[1641221684003,0.055347,46869.0,46861.0,0.05]
[1641221684199,0.053354,46865.0,46861.0,0.05]
[1641221684399,0.053354,46865.0,46860.0,0.36844704]
[1641221684400,0.053354,46865.0,46860.0,0.05]
[1641221684600,0.053354,46865.0,46859.0,0.14195081]
[1641221685235,0.053354,46865.0,46859.0,0.05]
[1641221685636,0.12985257,46860.0,46854.0,0.72443438]
[1641221685940,0.0392,46859.0,46854.0,0.72443438]
[1641221686138,0.053366,46857.0,46850.0,0.19174212]
[1641221686335,0.0392,46859.0,46850.0,0.19174212]
[1641221686336,0.05336841,46855.0,46850.0,0.0001]
[1641221686538,0.346946,46854.0,46850.0,0.0001]
[1641221686937,0.05336841,46855.0,46850.0,0.0001]
[1641221687338,0.05336841,46855.0,46850.0,0.17686184]
[1641221687536,0.05336841,46855.0,46850.0,0.22686184]
[1641221687736,0.0392,46859.0,46850.0,0.22686184]